Cogmind - Beta 11 @@@ ROGUE MODE // 2022.03.25 @ 14:06:38 Player: Michael Result: Destroyed by D-53 Grenadier with Mini Grenade Launcher Performance ------------- Evolutions (1) 500 Regions Visited (4) 800 Robots Destroyed (60) 300 Value Destroyed (981) 981 Prototype IDs (0) 0 Alien Tech Used (0) 0 Bonus (6) 6 TOTAL SCORE: 2587 Bonus ------- High Alert Combat Kills 33 Friendly Fire -27 Cogmind --------- Core Integrity 0/400 Matter 95/300 Energy 100/100 System Corruption 5% Temperature Cool (0) Movement Core (200) Ox3 Location -9/Mines Parts ------- > --- POWER (1) -------- (None) > --- PROPULSION (2) --- (None) > --- UTILITY (2) ------ Medium Storage Unit > --- WEAPON (4) ------- (None) > --- INVENTORY (10) --- Light Nuclear Core Medium Storage Unit High-capacity Matter Pod (200) Structural Scanner Rocket Launcher Rocket Launcher Peak State ------------ > --- POWER ------------ Improved Ion Engine > --- PROPULSION ------- Light Treads Wheel > --- UTILITY ---------- Disposable Heat Sink Medium Storage Unit > --- WEAPON ----------- Heavy Assault Rifle Heavy Assault Rifle Rocket Launcher Rocket Launcher > --- INVENTORY -------- Light Nuclear Core Wheel Wheel Wheel Medium Storage Unit High-capacity Matter Pod Structural Scanner Hardened Light Armor Plating Assault Rifle Assault Rifle [Rating: 16] Favorites ----------- Power Ion Engine Engine Ion Engine Power Core Light Nuclear Core Propulsion Wheel Treads Light Treads Leg Improved Aluminum Leg Wheel Wheel Utility Disposable Heat Sink Device Disposable Heat Sink Storage Medium Storage Unit Protection Hardened Light Armor Plating Weapon Assault Rifle Energy Gun EM Pulse Gun Ballistic Gun Assault Rifle Launcher Rocket Launcher Build | -11 -10 -10 -9 -9 ------- Run | Scr Mat Min Mat Min Slots Evolved 2 | . . . 2 . Power . | . . . . . Propulsion . | . . . . . Utility . | . . . . . Weapon 2 | . . . 2 . Parts Attached 71 | 5 20 9 23 14 Power 7 | 1 2 . 4 . Engine 4 | 1 . . 3 . Core 3 | . 2 . 1 . Reactor . | . . . . . Propulsion 39 | 2 11 5 14 7 Treads 14 | . 3 2 7 2 Leg 7 | 2 5 . . . Wheel 18 | . 3 3 7 5 Hover . | . . . . . Flight . | . . . . . Utility 8 | 1 4 2 . 1 Device 5 | . 3 2 . . Storage 2 | 1 1 . . . Processor . | . . . . . Hackware . | . . . . . Protection 1 | . . . . 1 Artifact . | . . . . . Weapon 17 | 1 3 2 5 6 Energy Gun 1 | 1 . . . . Energy Cannon . | . . . . . Ballistic Gun 11 | . 3 1 4 3 Ballistic Cannon . | . . . . . Launcher 5 | . . 1 1 3 Special Weapon . | . . . . . Impact Weapon . | . . . . . Slashing Weapon . | . . . . . Piercing Weapon . | . . . . . Special Melee Weapon . | . . . . . Unidentified Prototypes . | . . . . . Parts Lost 13 | . . . 2 11 Power 1 | . . . . 1 Propulsion 5 | . . . . 5 Utility 1 | . . . . 1 Weapon 6 | . . . 2 4 Highest Loss Streak 11 | . . . 1 11 To Critical Strikes 1 | . . . . 1 Average Slot Usage (%) 95 | . 96 100 96 88 Engine 8 | . 9 . 7 10 Core 3 | . 3 14 3 . Treads 2 | . . 3 4 2 Leg 10 | . 23 . . . Wheel 12 | . 4 24 17 17 Device 11 | . 11 14 11 8 Storage 12 | . 14 14 11 11 Energy Gun 1 | . 4 . . . Ballistic Gun 30 | . 23 26 40 35 Naked Turns . | . . . . . Heaviest Build 28 | 12 20 20 28 28 Greatest Support 26 | 20 26 20 20 20 Greatest Overweight (x) 2 | . . . 2 2 Average Overweight (x) . | . . . 1 1 Largest Inventory Capacity 10 | 8 10 10 10 10 Average Capacity 9 | 6 9 10 10 10 Most Carried 10 | 5 10 10 10 10 Average Carried 8 | 3 7 10 8 9 Final Capacity 10 | 8 10 10 10 10 Final Carried 10 | 5 10 10 10 6 Class Distribution -------------------- 60% | Mutant 28% | Gunner 10% | Scavenger-Gunner Dominant Class ---------------- Mutant | -10/Materials Mutant | -10/Mines Gunner | -9/Materials Scavenger-Gunner | -9/Mines Resources | -11 -10 -10 -9 -9 ----------- Run | Scr Mat Min Mat Min Matter Collected 1751 | 250 298 436 632 135 Remotely . | . . . . . Salvage Created 1930 | . 411 145 1116 258 Parts 129 | . 34 16 62 17 Haulers Intercepted 2 | . 1 . 1 . Recyclers Shooed 3 | . . 1 1 1 Parts Field Recycled . | . . . . . Retrieved Matter . | . . . . . Parts Self-Destructed . | . . . . . Prevented . | . . . . . Kills | -11 -10 -10 -9 -9 ------- Run | Scr Mat Min Mat Min Combat Hostiles Destroyed 53 | . 7 6 15 25 Guns 27 | . 7 5 12 3 AOE 26 | . . 1 3 22 Classes Destroyed 10 | . 7 . 1 2 Worker 7 | . 1 2 2 2 Builder 3 | . 2 1 . . Tunneler 1 | . . . . 1 Hauler 2 | . 1 . 1 . Recycler 7 | . 1 . 6 . Watcher 5 | . 2 . 3 . Swarmer 20 | . 3 6 7 4 Grunt 11 | . 4 . 4 3 Sentry 4 | . . . 4 . Assembled 18 | . . . . 18 Best Kill Streak 19 | . 5 5 9 19 Combat Bots Only 18 | . 3 3 4 18 Max Kills in Single Turn 5 | . 2 1 3 5 Gunslinging 1 | . . . 1 . Exploded 5 | . . 1 3 5 Melee . | . . . . . Uniques/NPCs Destroyed . | . . . . . Combat | -11 -10 -10 -9 -9 -------- Run | Scr Mat Min Mat Min Damage Taken 2176 | . 179 278 397 1322 Core 468 | . . 62 20 386 Absorbed by Shields . | . . . . . Regen/Repaired (Parts) 15 | . 15 . . . Core Remaining (%) 87 | 100 . 75 . . Volleys Fired 109 | . 29 24 37 19 Largest 4 | . 2 2 4 4 Hottest 86 | . 60 40 86 86 Shots Fired 284 | . 58 41 135 50 Gun 264 | . 58 34 134 38 Cannon . | . . . . . Launcher 20 | . . 7 1 12 Special . | . . . . . Kinetic 259 | . 53 34 134 38 Thermal . | . . . . . Explosive 13 | . . . 1 12 Electromagnetic 12 | . 5 7 . . Robot Hit Streak 13 | . 8 4 13 9 Robot Miss Streak 7 | . 4 5 7 2 Penetration Max . | . . . . . Secondary Targets 2 | . . . 2 . Max Gunslinging Chain 1 | . . . 1 . Shots Hit Robots 154 | . 30 19 79 26 Core Hits 117 | . 18 11 41 47 Critical Kills 1 | . 1 . . . Critical Parts Destroyed 1 | . . . 1 . Critical Strikes 2 | . 1 . 1 . Destroy 2 | . 1 . 1 . Melee Attacks . | . . . . . Impact . | . . . . . Slashing . | . . . . . Piercing . | . . . . . Sneak Attacks . | . . . . . Combat Hostiles . | . . . . . Follow-up Attacks . | . . . . . Damage Inflicted 3634 | . 420 327 1230 1657 Guns 2065 | . 420 220 1083 342 Cannons . | . . . . . Explosions 1569 | . . 107 147 1315 Melee . | . . . . . Ramming . | . . . . . Kinetic 2022 | . 377 220 1083 342 Thermal . | . . . . . Explosive 1462 | . . . 147 1315 Electromagnetic 150 | . 43 107 . . Impact . | . . . . . Slashing . | . . . . . Piercing . | . . . . . Highest Corruption 5 | . . . . 5 Average Corruption 5 | . . . . 5 Corruption Purged . | . . . . . Corruption Blocked . | . . . . . Effects 2 | . . . . 2 Matter Fused 1 | . . . . 1 Parts Rejected 1 | . . . . 1 Overload Shots . | . . . . . Overflow Damage 62 | . . . 30 32 Projectiles . | . . . . . Explosions 62 | . . . 30 32 Melee . | . . . . . Knockbacks . | . . . . . Impact . | . . . . . Kinetic . | . . . . . Secondary . | . . . . . Self-Inflicted Damage 226 | . . 31 32 163 Shots 7 | . . 2 1 4 Rammed . | . . . . . Targets Rammed . | . . . . . Kicked . | . . . . . Crushed . | . . . . . Highest Temperature 74 | . 20 . 58 74 Average Temperature 19 | . 10 . 17 28 Received Heat Transfer 321 | . 78 . 159 84 Siege Activations . | . . . . . Robots Corrupted . | . . . . . Combat Hostiles . | . . . . . Parts Fried . | . . . . . Impact Corruptions . | . . . . . Robots Melted . | . . . . . Combat Hostiles . | . . . . . Parts Melted . | . . . . . Heat Transferred . | . . . . . Parts Sabotaged . | . . . . . Parts Stolen . | . . . . . Parts Stripped . | . . . . . Power Chain Reactions 1 | . . 1 . . Missiles Intercepted . | . . . . . Alert | -11 -10 -10 -9 -9 ------- Run | Scr Mat Min Mat Min Peak Influence 516 | . 177 204 516 427 Initial 147 | . . 22 79 147 Average 180 | . 70 166 319 287 Maximum Alert Level 2 | . . 1 2 2 Low Security (%) 62 | 100 100 63 20 20 Level 1 28 | . . 36 56 61 Level 2 9 | . . . 23 18 Level 3 . | . . . . . Level 4 . | . . . . . Level 5 . | . . . . . High Security . | . . . . . Max Security . | . . . . . Squads Dispatched 1 | . . . . 1 Investigation . | . . . . . Extermination . | . . . . . Reinforcement 1 | . . . . 1 Assault . | . . . . . Garrison . | . . . . . Intercept . | . . . . . Searches Triggered . | . . . . . Construction Impeded 1 | . . . . 1 Haulers Reinforced . | . . . . . Active Scanning Responses . | . . . . . Cargo Convoy Interrupts . | . . . . . Stealth | -11 -10 -10 -9 -9 --------- Run | Scr Mat Min Mat Min Distress Signals 7 | . 1 1 5 . Communications Jammed . | . . . . . Distress Signals . | . . . . . Times Spotted 71 | . 14 6 23 28 Peak Tracking Total 17 | . 4 3 7 17 Tactical Retreats 4 | . 1 . 3 . Traps | -11 -10 -10 -9 -9 ------- Run | Scr Mat Min Mat Min Traps Triggered . | . . . . . Indirectly . | . . . . . Trap Hack Attempts . | . . . . . Triggered . | . . . . . Disarmed . | . . . . . Reprogrammed . | . . . . . Reused . | . . . . . Traps Extracted . | . . . . . Installed . | . . . . . Triggered . | . . . . . Machines | -11 -10 -10 -9 -9 ---------- Run | Scr Mat Min Mat Min Machines Disabled 2 | . 1 1 . . Max in Single Turn 1 | . 1 1 . . Machines Sabotaged . | . . . . . Garrisons Compromised . | . . . . . Overloaded Fab Kills . | . . . . . Hacking | -11 -10 -10 -9 -9 --------- Run | Scr Mat Min Mat Min Machines Accessed 15 | . 10 . 5 . Terminals 12 | . 7 . 5 . Fabricators . | . . . . . Repair Stations 1 | . 1 . . . Recycling Units 2 | . 2 . . . Scanalyzers . | . . . . . Garrison Access . | . . . . . Total Hacks 37 | . 23 . 14 . Successful 16 | . 12 . 4 . Failed 21 | . 11 . 10 . Catastrophic 5 | . 2 . 3 . Database Lockouts . | . . . . . Manual 19 | . 7 . 12 . Terminals 31 | . 17 . 14 . Fabricators . | . . . . . Repair Stations 2 | . 2 . . . Recycling Units 4 | . 4 . . . Scanalyzers . | . . . . . Garrison Access . | . . . . . Terminal Hacks 11 | . 7 . 4 . Branch Access Points 2 | . 1 . 1 . Unreport Threat 1 | . . . 1 . Locate Traps 4 | . 4 . . . Patrol Status 1 | . . . 1 . Hauler Manifests 1 | . 1 . . . Zone Layout 2 | . 1 . 1 . Fabricator Hacks . | . . . . . Repair Station Hacks 2 | . 2 . . . Scan Component 1 | . 1 . . . Repair 1 | . 1 . . . Recycling Unit Hacks 3 | . 3 . . . Process 1 | . 1 . . . Retrieve Matter 1 | . 1 . . . Retrieve Components 1 | . 1 . . . Scanalyzer . | . . . . . Garrison Access Hacks . | . . . . . Unauthorized Hacks . | . . . . . Terminals . | . . . . . Fabricators . | . . . . . Repair Stations . | . . . . . Recycling Units . | . . . . . Scanalyzers . | . . . . . Garrison Access . | . . . . . Data Cores Recovered . | . . . . . Used . | . . . . . Hacking Detections 12 | . 7 . 5 . Full Trace Events . | . . . . . Feedback Events . | . . . . . Feedback Blocked . | . . . . . Robot Schematics Acquired . | . . . . . Robots Built . | . . . . . Authchips . | . . . . . Time . | . . . . . Total Robot Build Rating . | . . . . . Part Schematics Acquired . | . . . . . Parts Built . | . . . . . Authchips . | . . . . . Time . | . . . . . Total Part Build Rating . | . . . . . Parts Repaired 1 | . 1 . . . Time 38 | . 38 . . . Parts Recycled . | . . . . . Recycled Matter 35 | . 35 . . . Retrieved Matter 35 | . 35 . . . Retrieved Components 10 | . 10 . . . Parts Scanalyzed . | . . . . . Part Schematics Acquired . | . . . . . Parts Damaged . | . . . . . Bothacking | -11 -10 -10 -9 -9 ------------ Run | Scr Mat Min Mat Min Used RIF Installer . | . . . . . Robots Hacked . | . . . . . Non-combat . | . . . . . Combat . | . . . . . Robot Hacks Applied . | . . . . . Relay Couplers Released . | . . . . . Fabnet Peak Effective % . | . . . . . Robots Rewired . | . . . . . Allies Hacked . | . . . . . Hacks Repelled . | . . . . . Allies | -11 -10 -10 -9 -9 -------- Run | Scr Mat Min Mat Min Total Allies . | . . . . . Largest Group . | . . . . . Highest-Rated Group . | . . . . . Highest-Rated Ally . | . . . . . Total Orders . | . . . . . Ally Attacks . | . . . . . Total Damage . | . . . . . Kills . | . . . . . Allies Corrupted . | . . . . . Allies Melted . | . . . . . Intel | -11 -10 -10 -9 -9 ------- Run | Scr Mat Min Mat Min Robot Analysis Total . | . . . . . Derelict Logs Recovered 1 | . . 1 . . Drone Launches . | . . . . . Drone Recoveries . | . . . . . Exploration | -11 -10 -10 -9 -9 ------------- Run | Scr Mat Min Mat Min Turns Passed 1959 | 63 856 204 581 255 Spaces Moved 1271 | 46 584 149 311 181 Core 5 | 5 . . . . Treads 19 | . . . 19 . Legs 489 | 41 448 . . . Wheels 758 | . 136 149 292 181 Hover . | . . . . . Flight . | . . . . . Fastest Speed 50 | 50 80 80 95 95 Average Speed 103 | 112 110 80 103 95 Slowest Speed 240 | 120 120 80 240 110 Overloaded Moves . | . . . . . Propulsion Burnouts . | . . . . . Robots Hopped . | . . . . . Cave-ins Triggered . | . . . . . Exploration Rate (%) 41 | 4 89 37 31 46 Regions Visited 4 Branch Regions 2 Pre-discovered Areas . | . . . . . Known Exits Taken 2 | . 1 . 1 . Unknown Exits Taken 2 | 1 . 1 . . Scrap Searched 3 | . . 2 . 1 Spaces Dug 15 | . . . 6 9 Terrain Destroyed 80 | . 8 4 6 62 Melee . | . . . . . Projectile . | . . . . . AOE 80 | . 8 4 6 62 Terrain Rammed . | . . . . . Walls Destroyed . | . . . . . Machines Disabled . | . . . . . Actions | -11 -10 -10 -9 -9 --------- Run | Scr Mat Min Mat Min Total 1675 | 55 735 189 473 223 Wait 185 | . 81 5 93 6 Move 1267 | 45 583 148 310 181 Hop . | . . . . . Pick Up 21 | 5 9 1 5 1 Fast Attach 13 | 5 6 . 2 . Attach 8 | . 1 . 3 4 Detach 3 | . 2 . 1 . Swap 50 | . 13 9 18 10 Drop 19 | . 11 2 4 2 Fire 109 | . 29 24 37 19 Melee . | . . . . . Ram . | . . . . . Kick . | . . . . . Crush . | . . . . . Escape Stasis . | . . . . . Rewire . | . . . . . Trap . | . . . . . Miscellaneous . | . . . . . Route ------- -11/Scrapyard -10/Materials (discovered 3 exits: *Mat x2 / *Min) -10/Mines -9/Materials (discovered 4 exits: *Mat x2 / *Min x2) -9/Mines (discovered 1 exit: *Mat) History --------- Turn | Location | Event 16 | -11/Scrapyard | Discovered new exit (range 14) 64 | -11/Scrapyard | Entered Materials 155 | -10/Materials | Discovered new exit (range 18) 315 | -10/Materials | Build established: Mutant 398 | -10/Materials | Identified exit to Mines 500 | -10/Materials | Discovered new exit (range 9) 694 | -10/Materials | Discovered new exit (range 11) 740 | -10/Materials | Repaired Lgt. Nuclear Core 920 | -10/Materials | Entered Mines 968 | -10/Mines | Learned location of 1 exit from Materials 1092 | -10/Mines | Discovered new exit (range 15) 1124 | -10/Mines | Entered Materials 1124 | -9/Materials | Evolved 2 slots: Weapon x2 1125 | -9/Materials | Identified exit to Materials 1377 | -9/Materials | Discovered exit to Materials (range 16) 1433 | -9/Materials | Build established: Gunner 1433 | -9/Materials | Identified exit to Mines 1705 | -9/Materials | Entered Mines 1790 | -9/Mines | Discovered exit to Materials (range 2) 1877 | -9/Mines | Assembled infested the area 1882 | -9/Mines | Assisted by a Guerilla fighting off Assembled 1923 | -9/Mines | Destroyed 18 combat bots 1953 | -9/Mines | Core integrity fell below 50% 1959 | -9/Mines | Core integrity fell below 20% 1960 | -9/Mines | Destroyed by D-53 Grenadier with Mini Grenade Launcher Last Messages --------------- 01913_ R-06 Scavenger collects Com. Wheel. 01916_ Acquired 2 matter. 01919_ The unstable cave ceiling collapses. 01929_ Wheel destroyed. 01930_ C-30 ARC bursts open, deploying its payload. 01930_ D-53 Grenadier unfolds itself. 01931_ The unstable cave ceiling collapses. 01935_ Assault Rifle destroyed. 01935_ Hvy. Assault Rifle destroyed. 01936_ System corrupted: Matter fused (-9). 01936_ as-89786 destroyed. 01949_ Wheel destroyed. 01950_ The unstable cave ceiling collapses. 01950_ U-05 Engineer lays Concrete. 01951_ Imp. Ion Engine destroyed. 01951_ U-05 Engineer lays Concrete. 01953_ The unstable cave ceiling collapses. 01954_ U-05 Engineer lays Concrete. 01960_ Wheel destroyed. 01960_ Hrd. Light Armor Plating destroyed. Map ----- +----------------------------------------------------+ | | | | | | | | | | | | | | | | | ?????????????????????????????????????????????????? | | ?????????????????????????????????????????????????? | | ??????????????????####???###?????????????????????? | | ?????????????????## #### ##????????????????????? | | ?????????###?????# ##???????????????????? | | ?######### ####### ##??????????????????? | | ## ### # ##< #??????????????????? | | # #### ## #??????????????????? | | # ### # #??????????????????? | | #### ##??????????????????? | | ! ## ##???????????????????? | | = dd #????????????????????? | | * ##????????????????????? | | " # ##?????????????????????? | | "%" ##????????????????????? | | " u ###??????????????????? | | # ##?????????????????? | | ### # # @ #?????????????????? | | ??####### ##%## #?????????????? | | ????????####%##### # #????????????? | | ??????????? #???## #? #????????????? | | ??????????## #????### ###?? ##????????????? | | ???????????# #??????#######????? #?#?????????????? | | ???????????# #???????????????????????????????????? | | ???????????# ???????????????????????????????????? | | ???????????###???????????????????????????????????? | | ?????????????????????????????????????????????????? | | ?????????????????????????????????????????????????? | | ?????????????????????????????????????????????????? | | ?????????????????????????????????????????????????? | | ?????????????????????????????????????????????????? | | ?????????????????????????????????????????????????? | | ?????????????????????????????????????????????????? | | ?????????????????????????????????????????????????? | | ?????????????????????????????????????????????????? | | ?????????????????????????????????????????????????? | | ?????????????????????????????????????????????????? | | ?????????????????????????????????????????????????? | | ?????????????????????????????????????????????????? | | ?????????????????????????????????????????????????? | | ?????????????????????????????????????????????????? | | ?????????????????????????????????????????????????? | +----------------------------------------------------+ Best States ------------- Heat Dissipation 28 Coolant Potential 50 Energy Generation 14 Energy Capacity 265 Matter Stores 300 Matter Capacity 300 Sight Range 16 Terrain Scan Density 10 Armor Coverage 150 Evasion (%) 55 Recoil Reduction 1 Item Schematics ----------------- None Robot Schematics ------------------ None Fabricated ------------ Nothing Alien Tech Used ----------------- None Achievements -------------- Exterminator Challenges ------------ None Game ------ Seed MakeshiftDynamicGreatsword Manual? 1 Play Time 00:26:51 Cumulative 638.5 hours Start 2022.03.25 @ 13:28:00 End 2022.03.25 @ 14:06:38 Sessions 1 Manual Loads 0 Difficulty Rogue Special Mode None Game No. 194 Rogue 158 Adventurer 36 Explorer 0 Win Type - Total 14 Types 14/0/0/0/0/0/0/0/0 Lore% 54 Gallery% 61 Achievement% 48 Wizard Run 0 Options --------- ASCII 0 Keyboard 1 Movement Vi Keybinds 0 Fullscreen 1 Font 18/Terminus Map View 76x50 Tactical HUD 1 Map Filters NONE Filters NONE Steam 0 RUN: 02efa4f7-4e7e-4782-9270-062602560049